bitfinex-derivatives/quotes_SOLF0:USTF0_20251207
["timestamp","ask_amount","ask_price","bid_price","bid_amount"]
[1765128988347,106.8905,134.95,134.83,103.8221]
[1765128988548,3.15,134.95,134.84,103.8107]
[1765128988748,103.7323,134.96,134.85,65.86]
[1765128988949,103.706,134.99,134.88,9.21481022]
[1765128989253,0.05464331,134.95,134.92,0.04830215]
[1765128989550,0.05045075,134.95,134.93,65.88]
[1765128989845,0.05045075,134.95,134.92,0.04830215]
[1765128990052,0.05045075,134.95,134.92,65.92830215]
[1765128990544,3.15,135.02,134.92,169.68180215]
[1765128990745,3.15,135.02,134.92,65.88]
[1765128990942,3.15,135.02,134.92,169.6323]
[1765128991143,3.15,135.02,134.92,65.88]
[1765128991552,103.6529,135.06,134.96,0.05065027]
[1765128991553,0.04931216,134.98,134.96,0.05065027]
[1765128991743,3.15,135.06,134.96,65.86]
[1765128992142,0.04927493,135.02,135.0,0.05068599]
[1765128993241,3.19927493,135.02,135.0,0.05068599]
[1765128994645,0.04927493,135.02,135.0,0.05068599]
[1765128995052,0.04927493,135.02,135.0,103.73978599]
[1765128995251,3.15,135.1,135.0,6.71668599]
[1765128995557,3.15,135.1,135.0,72.486]
[1765128996148,3.15,135.05,135.04,0.05272197]
[1765128996652,0.05288964,135.06,135.04,0.05272197]
[1765128997455,3.15,135.14,135.05,72.4836]
[1765128998452,3.15,135.14,135.08,0.04869404]
[1765128998645,0.05172734,135.11,135.08,0.04869404]
[1765128999051,3.20172734,135.11,135.08,0.04869404]
[1765128999454,3.15,135.1,134.99,110.3647]
[1765128999652,3.15,135.09,134.99,72.4462]
[1765129000053,3.15,135.08,134.99,72.4462]
[1765129000256,3.15,135.08,134.99,176.1489]
[1765129000462,0.05697786,135.05,135.02,0.04871161]
[1765129001455,3.20697786,135.05,134.99,59.04]
[1765129001760,3.20697786,135.05,134.88,311.3442]
[1765129001761,103.6659,135.04,134.93,3.06]
[1765129001955,103.6593,135.05,134.94,3.06]
[1765129002165,116.28722845,135.07,134.95,106.7933]
[1765129002348,103.6557,135.06,134.95,3.06]
[1765129002664,0.04748106,135.02,134.99,0.0499668]
[1765129002855,0.04748106,135.02,134.99,3.1099668]
[1765129003960,0.04748106,135.02,134.99,0.0499668]
[1765129004460,103.73238106,135.02,134.91,3.06]
[1765129004657,103.6777,135.03,134.92,3.06]
[1765129004861,103.6606,135.05,134.94,3.06]
[1765129005050,103.669,135.04,134.94,3.06]
[1765129005255,0.04913028,135.0,134.98,0.05044405]
[1765129007756,0.04913028,135.0,134.98,0.00044405]
[1765129007952,105.1858,134.99,134.9,3.14]
[1765129008158,103.7143,134.98,134.87,3.14]
[1765129008351,103.7213,134.97,134.87,3.14]
[1765129008665,110.3893,134.97,134.87,3.14]
[1765129008866,0.04780719,134.93,134.87,3.14]
[1765129009059,0.04780719,134.93,134.87,106.9323]
[1765129009265,6.6666,134.99,134.89,3.14]
[1765129009763,12.64652845,135.01,134.91,3.14]
[1765129009959,109.66882845,135.01,134.91,3.14]
[1765129010264,0.04700669,134.97,134.95,0.04855691]
[1765129011461,0.04700669,134.97,134.89,3.14]
[1765129011658,71.76082845,134.99,134.89,3.14]
[1765129011863,5.98082845,134.99,134.89,3.14]
[1765129012158,12.64782845,134.99,134.89,113.5881]
[1765129012363,0.05475967,134.95,134.91,3.14]
[1765129012760,0.05475967,134.95,134.87,3.14]
[1765129012964,0.05481068,134.92,134.84,3.14]
[1765129013365,0.05481068,134.92,134.84,9.814]
[1765129013964,0.05481068,134.92,134.86,3.14]
[1765129014565,0.05481068,134.92,134.87,9.8121]
[1765129014765,0.05481068,134.92,134.88,3.14]
[1765129015965,0.05481068,134.92,134.89,3.07]
[1765129016759,0.05481068,134.92,134.88,6.6717]
[1765129016961,0.05481068,134.92,134.85,3.07]
[1765129017561,0.05481068,134.92,134.87,3.07]
[1765129018262,0.05481068,134.92,134.88,6.6717]
[1765129018462,0.05481068,134.92,134.89,3.07]
[1765129019372,0.05481068,134.92,134.89,9.7412]
[1765129019871,0.05481068,134.92,134.89,3.07]
[1765129020869,0.05481068,134.92,134.84,103.8125]
[1765129020870,0.05481068,134.92,134.83,3.07]
[1765129021075,0.05476845,134.89,134.83,3.07]
[1765129021269,0.05476845,134.89,134.81,6.6752]
[1765129021477,0.05476845,134.89,134.8,65.8]
[1765129021680,0.05276806,134.86,134.81,3.07]
[1765129022068,0.05276806,134.86,134.81,106.9083]
[1765129022268,0.05276806,134.86,134.82,3.07]
[1765129022672,0.05276806,134.86,134.82,9.7446]
[1765129022971,0.05276806,134.86,134.82,6.6746]
[1765129023175,0.05276806,134.86,134.82,9.7446]
[1765129023362,0.05276806,134.86,134.82,3.07]
[1765129023569,0.05276806,134.86,134.8,6.6758]
[1765129023768,0.05276806,134.86,134.8,9.7458]
[1765129024075,103.8186,134.84,134.73,103.8992]
[1765129024279,0.04803548,134.8,134.73,3.07]
[1765129024571,0.04803548,134.8,134.73,68.85]
[1765129025170,0.04803548,134.8,134.74,3.07]
[1765129025375,0.04803548,134.8,134.74,106.9651]
[1765129025672,0.04803548,134.8,134.76,3.07]
[1765129025864,0.04803548,134.8,134.73,65.78]
[1765129026063,0.04803548,134.8,134.72,3.07]
[1765129026663,0.04803548,134.8,134.72,9.7496]
[1765129027274,109.87966393,134.8,134.7,6.6808]
[1765129027475,109.87966393,134.8,134.69,65.78]
[1765129027476,0.05614577,134.76,134.68,3.07]
[1765129027980,0.05614577,134.76,134.71,3.07]
[1765129028479,0.05614577,134.76,134.67,6.86373014]
[1765129028779,0.05215819,134.73,134.67,6.86373014]
[1765129029173,0.05215819,134.73,134.67,117.49483014]
[1765129029373,0.05215819,134.73,134.67,13.54593014]
[1765129029581,0.05215819,134.73,134.69,3.07]
[1765129029981,71.80082845,134.81,134.71,106.988]
[1765129030187,103.8513,134.8,134.69,3.07]
[1765129030572,6.6767,134.79,134.7,3.07]
[1765129030883,103.8653,134.78,134.7,3.07]
[1765129031084,0.05484714,134.76,134.73,0.05169011]
[1765129031274,109.87802845,134.74,134.67,3.79373014]
[1765129031468,5.98082845,134.74,134.67,3.79373014]
[1765129031773,103.8538,134.8,134.67,6.86373014]
[1765129031976,109.80922845,134.83,134.72,3.07]
[1765129032176,103.8431,134.81,134.72,3.07]
[1765129032584,0.05004995,134.78,134.72,3.07]
[1765129032772,0.05004995,134.78,134.7,65.86]
[1765129032976,0.05004995,134.78,134.68,68.93]
[1765129032977,103.91844995,134.78,134.68,68.93]
[1765129033177,0.05044436,134.74,134.68,68.93]
[1765129033480,0.05044436,134.74,134.69,3.07]
[1765129034380,103.8426,134.81,134.7,3.07]
[1765129034981,6.6749,134.83,134.72,3.07]
[1765129035172,103.8358,134.82,134.72,3.07]
[1765129035486,0.05425308,134.78,134.76,0.05189257]
[1765129035686,0.04794164,134.78,134.76,0.05189257]
[1765129036285,6.6775,134.77,134.68,3.07]
[1765129037279,0.05395404,134.74,134.68,3.07]
[1765129037782,0.05395404,134.74,134.7,3.3]
[1765129038481,0.05395404,134.74,134.7,9.9809]
[1765129038689,0.05395404,134.74,134.71,3.3]
[1765129039182,109.79572845,134.85,134.73,3.3]
[1765129039782,6.674,134.85,134.75,3.3]
[1765129040287,0.05679059,134.81,134.79,3.34830464]
[1765129040485,0.05648371,134.81,134.79,3.35142104]
[1765129040878,0.05648371,134.81,134.79,0.05142104]
[1765129041085,0.05648371,134.81,134.79,3.35142104]
[1765129041789,6.6712,134.9,134.82,3.3]
[1765129042086,103.7726,134.9,134.82,3.3]
[1765129042286,103.7726,134.9,134.78,3.3]
[1765129042287,103.781,134.89,134.78,3.3]
[1765129042484,103.781,134.89,134.79,3.3]
[1765129042787,0.04802252,134.85,134.83,0.05163058]
[1765129044690,103.8264,134.83,134.74,3.3]
[1765129044992,6.676,134.8,134.71,3.3]
[1765129045198,109.80722845,134.83,134.74,3.3]
[1765129045784,0.0493372,134.8,134.77,0.04977354]
[1765129045987,0.0493372,134.8,134.77,3.34977354]
[1765129046884,0.0493372,134.8,134.77,0.04977354]
[1765129047491,0.0493372,134.8,134.77,3.34977354]
[1765129048688,6.673,134.86,134.77,3.34977354]
[1765129048895,6.673,134.86,134.77,3.3]
[1765129049691,6.674,134.84,134.77,3.3]
[1765129049891,0.0524886,134.82,134.79,0.05340994]
[1765129051484,5.53872177,134.81,134.68,3.3]
[1765129051704,5.98082845,134.78,134.69,3.3]
[1765129051898,109.82502845,134.81,134.71,3.3]
[1765129052086,110.67595695,134.84,134.73,3.3]
[1765129052289,103.8504,134.8,134.73,3.3]
[1765129052487,103.8662,134.78,134.68,3.3]
[1765129052689,0.05442502,134.74,134.72,0.05474932]
[1765129054798,6.73342502,134.74,134.72,0.05474932]
[1765129055004,0.05442502,134.74,134.72,0.05474932]
[1765129055891,5.56568991,134.73,134.72,0.05474932]
[1765129056202,5.57200053,134.73,134.72,0.05474932]
[1765129057397,0.05442502,134.74,134.72,3.35474932]
[1765129058305,6.85395695,134.8,134.73,3.3]
[1765129059011,110.70335695,134.8,134.73,3.3]
[1765129059205,0.054026,134.78,134.75,0.05048809]
[1765129059507,0.0469058,134.78,134.75,0.05001937]
[1765129060398,0.0469058,134.78,134.75,3.35001937]
[1765129061011,65.7,134.85,134.75,3.35001937]
[1765129061212,65.7,134.85,134.75,3.3]
[1765129061607,103.8195,134.84,134.75,3.3]
[1765129061912,0.05489858,134.81,134.78,0.05169415]
[1765129063808,6.73069858,134.81,134.72,3.3]
[1765129064007,6.85395695,134.83,134.73,3.3]
[1765129064405,110.67345695,134.84,134.73,3.3]
[1765129064598,0.05412608,134.8,134.77,0.05393369]
[1765129069415,6.73032608,134.8,134.73,3.3]
[1765129069618,0.05412608,134.8,134.7,3.15]
[1765129069811,6.85395695,134.83,134.73,103.9022]
[1765129070008,5.57111481,134.82,134.76,9.8277]
[1765129070206,6.6744,134.84,134.76,9.8277]
[1765129070516,0.05078704,134.81,134.79,0.04748676]
[1765129070813,0.05078704,134.81,134.79,3.19748676]
[1765129073913,0.05078704,134.81,134.8,3.15]
[1765129074109,6.6721,134.88,134.8,3.15]
[1765129074314,103.7878,134.88,134.8,3.15]
[1765129074622,103.7829,134.89,134.8,3.15]
[1765129074814,65.66,134.9,134.81,3.15]
[1765129075322,0.05592081,134.87,134.84,3.19846967]
[1765129076514,0.05592081,134.87,134.84,0.04846967]
[1765129076926,0.05592081,134.87,134.84,3.13846967]
[1765129077220,0.05592081,134.87,134.84,0.04846967]
[1765129077616,6.72882081,134.87,134.84,0.04846967]
[1765129078927,0.05592081,134.87,134.75,3.09]
[1765129079116,178.74181702,134.86,134.75,3.09]
[1765129079316,5.56593699,134.85,134.76,3.09]
[1765129079518,65.64,134.88,134.78,3.09]
[1765129079914,65.64,134.88,134.82,0.05214943]
[1765129080225,0.05246367,134.84,134.82,0.05214943]
[1765129080529,0.05246367,134.84,134.82,3.14214943]
[1765129081322,6.6712,134.9,134.82,3.14214943]
[1765129081726,103.7733,134.9,134.82,3.14214943]
[1765129081929,103.7876,134.88,134.82,3.14214943]
[1765129082424,6.6739,134.85,134.82,3.14214943]
[1765129082623,6.6739,134.85,134.73,113.20081702]
[1765129082624,103.8494,134.8,134.73,3.09]
[1765129082814,103.8728,134.77,134.68,3.09]
[1765129083014,6.6783,134.76,134.69,3.09]
[1765129083219,103.8648,134.78,134.69,3.09]
[1765129083421,103.8742,134.77,134.69,3.09]
[1765129083819,0.048073,134.74,134.72,3.141359]
[1765129084023,169.4858,134.81,134.72,3.141359]
[1765129084328,65.64,134.81,134.72,3.09]
[1765129084530,6.6762,134.8,134.72,3.09]
[1765129084826,103.8497,134.8,134.72,3.09]
[1765129085017,0.05296445,134.77,134.75,0.0565579]
[1765129085225,0.05296445,134.77,134.75,3.1465579]
[1765129085418,71.19108401,134.85,134.75,3.1465579]
[1765129085623,71.19108401,134.85,134.75,3.09]
[1765129085923,6.6743,134.84,134.75,3.09]
[1765129086227,103.8512,134.8,134.69,3.09]
[1765129086427,0.05471244,134.76,134.73,0.05292458]
[1765129087226,0.05471244,134.76,134.69,3.09]
[1765129087227,103.9052,134.73,134.65,3.09]
[1765129087427,103.8955,134.74,134.65,3.09]
[1765129087727,65.64,134.74,134.64,3.09]
[1765129087914,65.64,134.74,134.64,107.0599]
[1765129088119,0.05673592,134.72,134.69,0.05197959]
[1765129088927,0.05673592,134.72,134.69,3.14197959]
[1765129089926,0.05673592,134.72,134.69,0.05197959]
[1765129091126,0.05673592,134.72,134.69,3.14197959]
[1765129091824,0.05673592,134.72,134.69,0.05197959]
[1765129094124,6.6769,134.79,134.71,3.09]
[1765129094526,6.6756,134.81,134.72,3.09]
[1765129094724,169.5027,134.81,134.7,3.09]
[1765129094929,65.66,134.81,134.72,3.09]
[1765129095125,0.05030115,134.78,134.75,0.05533453]
[1765129095629,0.05030115,134.78,134.75,3.14533453]
[1765129096628,0.05030115,134.78,134.75,0.05533453]
[1765129097232,0.05030115,134.78,134.75,3.14533453]
[1765129099537,6.72730115,134.78,134.75,0.05533453]
[1765129100430,0.05030115,134.78,134.75,3.41533453]
[1765129104242,103.8067,134.86,134.75,3.41533453]
[1765129104442,169.4467,134.86,134.75,3.36]
[1765129105436,0.05339578,134.82,134.79,3.41439793]
[1765129108839,0.05339578,134.82,134.79,0.05439793]
[1765129109142,0.05339578,134.82,134.79,3.41439793]
[1765129109348,6.6723,134.88,134.79,3.41439793]
[1765129109551,6.6723,134.88,134.8,3.36]
[1765129110145,6.6729,134.87,134.8,3.36]
[1765129110341,6.6729,134.87,134.82,0.04952048]
[1765129110342,0.05166922,134.85,134.82,0.04952048]
[1765129111553,0.05166922,134.85,134.82,3.40952048]
[1765129111847,103.7443,134.94,134.82,3.40952048]
[1765129112043,103.7443,134.94,134.82,3.36]
[1765129112449,103.7443,134.94,134.84,3.36]
[1765129112450,6.6698,134.93,134.84,3.36]
[1765129112950,0.05612708,134.9,134.87,0.05578949]
[1765129115048,0.05612708,134.9,134.87,3.41578949]
[1765129115351,103.7064,134.99,134.87,3.41578949]
[1765129115646,103.698,135.0,134.88,3.36]
[1765129115647,103.7276,134.96,134.88,3.36]
[1765129115946,9.29871702,134.97,134.88,3.36]
[1765129116145,112.99671702,135.0,134.89,3.36]
[1765129116350,0.05637293,134.96,134.93,0.04687484]
[1765129117246,6.6688,134.95,134.93,0.04687484]
[1765129118253,0.05637293,134.96,134.93,0.04687484]
[1765129118753,0.05637293,134.96,134.93,3.40687484]
[1765129118957,103.7347,134.95,134.85,3.36]
[1765129119153,5.98976874,134.93,134.85,3.36]
[1765129120047,0.04828733,134.9,134.88,0.04691224]
[1765129121047,0.04828733,134.9,134.85,3.36]
[1765129122053,0.04828733,134.9,134.87,3.36]
[1765129122650,0.04828733,134.9,134.86,3.4137253]
[1765129125255,6.03805607,134.9,134.86,0.0537253]
[1765129125453,110.4605,134.88,134.86,0.0537253]
[1765129125750,5.98976874,134.87,134.79,3.36]
[1765129125952,6.6731,134.86,134.79,3.36]
[1765129126149,103.8107,134.85,134.79,3.36]
[1765129126653,0.04970476,134.83,134.81,0.05452094]
[1765129126852,0.04970476,134.83,134.81,0.04970691]
[1765129127742,0.04970476,134.83,134.68,325.179]
[1765129127743,103.87690476,134.83,134.68,103.9402]
[1765129127956,103.8272,134.83,134.72,3.16]
[1765129128350,103.8435,134.81,134.73,3.16]
[1765129128551,103.8515,134.8,134.73,3.16]
[1765129128851,0.04933283,134.78,134.75,0.05054177]
[1765129129841,0.04933283,134.78,134.71,3.16]
[1765129130951,0.04933283,134.78,134.74,3.16]
[1765129131151,0.05145,134.77,134.74,3.16]
[1765129132466,0.05145,134.77,134.73,0.04902435]
[1765129133145,6.72915,134.77,134.73,0.04902435]
[1765129133352,103.92485,134.77,134.73,0.04902435]
[1765129134448,6.6788,134.75,134.73,0.04902435]
[1765129134653,72.2588,134.75,134.73,0.04902435]
[1765129134854,6.72915,134.77,134.73,0.04902435]
[1765129135049,72.32915,134.77,134.73,0.04902435]
[1765129135851,6.72915,134.77,134.73,3.30902435]
[1765129136153,72.32915,134.77,134.73,0.04902435]
[1765129136348,0.05145,134.77,134.73,3.30902435]
[1765129137356,0.05145,134.77,134.73,0.04902435]
[1765129137664,169.52475,134.77,134.73,0.04902435]
[1765129137860,103.8815,134.76,134.73,0.04902435]
[1765129138062,169.4815,134.76,134.73,0.04902435]
[1765129139355,6.6788,134.75,134.73,0.04902435]
[1765129140158,6.72915,134.77,134.73,3.30902435]
[1765129140360,0.05145,134.77,134.73,3.30902435]
[1765129140859,0.05145,134.77,134.73,0.04902435]
[1765129141063,103.8885,134.75,134.73,0.04902435]
[1765129141250,169.4956,134.74,134.67,3.79373014]
[1765129141449,6.6798,134.73,134.67,3.79373014]
[1765129141866,72.2798,134.73,134.67,3.79373014]
[1765129142062,103.8651,134.78,134.68,3.26]
[1765129142362,0.05701123,134.74,134.69,3.31555901]
[1765129142558,0.05701123,134.74,134.71,3.26]
[1765129144256,0.05701123,134.74,134.7,0.05547734]
[1765129144964,0.05701123,134.74,134.7,3.31547734]
[1765129147363,103.8303,134.83,134.71,3.26]
[1765129147567,103.8303,134.83,134.72,3.26]
[1765129148568,0.04849676,134.79,134.76,0.05683083]
[1765129148754,0.04849676,134.79,134.76,3.31683083]
[1765129149864,169.3977,134.87,134.76,3.31683083]
[1765129150068,169.3977,134.87,134.76,3.26]
[1765129150270,6.6732,134.86,134.77,3.26]
[1765129150460,103.8034,134.86,134.77,3.26]
[1765129150969,0.05371258,134.83,134.8,0.0533233]
[1765129151472,0.05371258,134.83,134.8,3.3133233]
[1765129156873,0.05371258,134.83,134.8,0.0533233]
[1765129157166,0.05371258,134.83,134.8,3.3133233]
[1765129160064,103.7424,134.94,134.81,3.08]
[1765129160264,103.7522,134.93,134.82,3.08]
[1765129160566,110.4058,134.95,134.84,3.08]
[1765129160769,169.297,134.95,134.84,3.08]
[1765129160972,103.737,134.95,134.84,3.08]
[1765129161171,0.04946248,134.91,134.88,0.05611405]
[1765129161469,0.04946248,134.91,134.88,3.13611405]
[1765129163368,0.04946248,134.91,134.88,0.05611405]
[1765129163568,103.7806,134.89,134.81,3.08]
[1765129163963,6.6727,134.87,134.81,3.08]
[1765129164165,103.7727,134.9,134.81,3.08]
[1765129164660,0.05094613,134.87,134.84,0.05033991]
[1765129165162,0.05094613,134.87,134.84,3.13033991]
[1765129165676,6.6698,134.93,134.84,3.13033991]
[1765129165869,6.6698,134.93,134.84,3.08]
[1765129166359,6.6686,134.95,134.86,3.08]
[1765129166565,0.04815465,134.92,134.89,3.1279651]
[1765129167366,0.04815465,134.92,134.89,0.0479651]
[1765129169470,6.71845465,134.92,134.89,0.0479651]
[1765129169671,103.80815465,134.92,134.89,0.0479651]
[1765129169964,103.7751,134.9,134.82,3.08]
[1765129170165,103.7887,134.88,134.8,65.52]
[1765129170673,6.6733,134.86,134.8,65.52]
[1765129171079,0.05055005,134.84,134.82,0.05254271]
[1765129174182,6.72475005,134.84,134.82,0.05254271]
[1765129175674,103.87185005,134.84,134.76,3.08]
[1765129175975,103.8356,134.82,134.74,65.5]
[1765129176177,169.3445,134.81,134.72,3.08]
[1765129176477,103.8263,134.83,134.72,3.08]
[1765129176679,0.05179603,134.79,134.76,3.12888462]
[1765129176877,0.05356848,134.79,134.76,3.13423334]
[1765129178476,103.8153,134.85,134.76,3.13423334]
[1765129178477,6.6736,134.85,134.76,3.13423334]
[1765129178681,6.6736,134.85,134.76,3.08]
[1765129179482,0.05643473,134.82,134.79,3.12923714]
[1765129179988,0.05643473,134.82,134.79,0.04923714]
[1765129180583,0.05643473,134.82,134.79,3.12923714]
[1765129182689,0.05643473,134.82,134.79,0.04923714]
[1765129188885,105.37383473,134.82,134.67,3.79373014]
[1765129189090,105.37383473,134.82,134.69,3.12]
[1765129189091,103.8519,134.8,134.69,3.12]
[1765129189291,65.5,134.79,134.69,3.12]
[1765129189493,103.875,134.77,134.67,3.79373014]
[1765129189694,103.865,134.78,134.67,3.79373014]
[1765129189695,103.8957,134.74,134.67,3.79373014]
[1765129189899,169.4049,134.73,134.67,3.79373014]
[1765129190096,6.6804,134.71,134.67,3.79373014]
[1765129190482,110.5994,134.71,134.67,3.79373014]
[1765129190689,110.6102,134.7,134.67,3.79373014]
[1765129191090,112.0902,134.7,134.67,0.05464584]
[1765129191296,110.6196,134.69,134.59,3.12]
[1765129191491,65.5,134.68,134.59,3.12]
[1765129191796,103.9615,134.66,134.56,3.12]
[1765129192285,0.05502307,134.62,134.6,0.03224218]
[1765129194887,0.05502307,134.62,134.53,3.12]
[1765129195088,103.9962,134.61,134.53,3.12]
[1765129195499,6.6855,134.61,134.53,3.12]
[1765129195894,0.05455862,134.58,134.53,3.12]
[1765129196794,113.27746956,134.66,134.55,3.1]
[1765129196995,6.6825,134.67,134.57,3.1]
[1765129197189,103.9602,134.66,134.57,3.1]
[1765129197393,103.9693,134.65,134.57,3.1]
[1765129197891,0.05680103,134.62,134.6,0.04669845]
[1765129199087,0.05680103,134.62,134.6,3.14669845]
[1765129200491,0.05680103,134.62,134.6,0.04669845]
[1765129200802,0.05680103,134.62,134.6,3.14669845]
[1765129201497,0.05680103,134.62,134.6,0.04669845]
[1765129201685,0.05680103,134.62,134.6,3.14669845]
[1765129202093,0.05680103,134.62,134.6,0.04669845]
[1765129203706,0.05680103,134.62,134.6,3.14669845]
[1765129204499,103.9049,134.73,134.62,3.1]
[1765129204500,6.6801,134.72,134.62,3.1]
[1765129204803,65.54,134.71,134.62,3.1]
[1765129205011,72.2209,134.71,134.62,3.1]
[1765129205195,65.54,134.71,134.64,3.1]
[1765129205706,0.05646549,134.69,134.66,0.04996961]
[1765129205998,0.05646549,134.69,134.66,3.14996961]
[1765129206600,0.05646549,134.69,134.66,9.83276961]
[1765129206799,0.05646549,134.69,134.67,3.1]
[1765129206993,0.05646549,134.69,134.66,3.14996961]
[1765129208891,0.05646549,134.69,134.66,0.04996961]
[1765129209293,103.9504,134.67,134.58,65.54]
[1765129209692,113.26726956,134.67,134.57,3.1]
[1765129210298,0.0564852,134.63,134.61,0.05618044]
[1765129214304,110.7215852,134.63,134.61,0.05618044]
[1765129214605,171.0368852,134.63,134.54,3.1]
[1765129214908,6.6858,134.61,134.54,3.1]
[1765129215104,103.9759,134.64,134.54,3.1]
[1765129215309,103.9821,134.63,134.54,3.1]
[1765129215610,0.0510562,134.6,134.54,3.1]
[1765129220305,104.0123,134.59,134.5,3.16]
[1765129220612,0.04787665,134.56,134.5,3.16]
[1765129223915,0.04787665,134.56,134.5,9.8506]
[1765129224119,0.04787665,134.56,134.51,3.16]
[1765129225016,0.04787665,134.56,134.47,3.16]
[1765129225211,0.05451667,134.53,134.47,3.16]
[1765129226621,0.05451667,134.53,134.48,3.16]
[1765129227723,0.05451667,134.53,134.44,3.16]
[1765129227921,0.05268857,134.5,134.44,3.16]
[1765129231422,6.6916,134.49,134.44,3.16]
[1765129232331,0.05268857,134.5,134.44,3.16]
[1765129234030,0.05268857,134.5,134.46,3.16]
[1765129236427,0.05268857,134.5,134.47,3.16]
[1765129236820,0.00268857,134.5,134.47,3.16]
[1765129237025,104.0426,134.55,134.47,3.16]
[1765129237226,104.0383,134.56,134.47,3.16]
[1765129237931,0.05309146,134.53,134.5,3.20714799]
[1765129238131,0.05309146,134.53,134.5,0.04714799]
[1765129238329,104.11609146,134.53,134.5,0.04714799]
[1765129238937,12.20510756,134.52,134.5,0.04714799]
[1765129239134,6.6903,134.52,134.5,0.04714799]
[1765129240533,0.05309146,134.53,134.5,3.20714799]
[1765129241330,0.05309146,134.53,134.5,0.04714799]
[1765129242330,6.74259146,134.53,134.5,0.04714799]
[1765129244434,6.6901,134.52,134.5,0.04714799]
[1765129247434,0.05309146,134.53,134.5,3.20714799]
[1765129248232,6.6901,134.52,134.5,0.04714799]
[1765129252340,6.6919,134.48,134.37,175.70099683]
[1765129252537,169.5951,134.49,134.4,3.2]
[1765129252843,104.1047,134.47,134.4,3.2]
[1765129253029,104.112,134.46,134.4,3.2]
[1765129253437,0.05252821,134.44,134.4,3.2]
[1765129253636,0.05252821,134.44,134.37,3.2]
[1765129253637,6.74662821,134.44,134.37,3.2]
[1765129253944,0.04834331,134.42,134.37,3.2]
[1765129254133,6.74344331,134.42,134.37,3.2]
[1765129254439,0.04834331,134.42,134.37,3.2]
[1765129256241,65.5,134.48,134.39,3.16]
[1765129256537,169.5816,134.5,134.39,3.16]
[1765129257245,0.05596983,134.46,134.43,3.20933883]
[1765129258443,6.74886983,134.46,134.43,3.20933883]
[1765129258646,6.74886983,134.46,134.43,0.04933883]
[1765129259040,0.05596983,134.46,134.43,3.20933883]
[1765129259539,0.05596983,134.46,134.43,0.04933883]
[1765129260240,0.05596983,134.46,134.43,3.20933883]
[1765129260838,6.74916983,134.46,134.43,0.04933883]
[1765129261141,104.17086983,134.46,134.43,0.04933883]
[1765129261340,176.3133,134.45,134.43,0.04933883]
[1765129261744,6.6938,134.45,134.43,0.04933883]
[1765129263240,6.6938,134.45,134.38,3.16]
[1765129263241,6.6945,134.43,134.38,3.16]
[1765129264141,0.04838289,134.42,134.38,3.16]
[1765129264546,65.54838289,134.42,134.34,3.16]
[1765129264745,0.05386109,134.39,134.34,3.16]
[1765129266534,6.02429683,134.47,134.36,3.16]
[1765129266734,6.02429683,134.47,134.37,3.16]
[1765129267238,6.6936,134.45,134.38,3.16]
[1765129267639,0.04960209,134.43,134.41,3.16]
[1765129268443,0.04960209,134.43,134.4,0.0502703]
[1765129268637,0.04960209,134.43,134.4,3.2102703]
[1765129276458,0.04960209,134.43,134.4,0.0502703]
[1765129277055,0.04960209,134.43,134.4,3.2102703]
[1765129281452,6.6952,134.42,134.4,0.0502703]
[1765129281845,175.63559683,134.41,134.31,3.09]
[1765129282451,104.1625,134.4,134.33,3.09]
[1765129282756,0.05717493,134.38,134.33,3.09]
[1765129283848,0.05717493,134.38,134.3,108.07276264]
[1765129283849,6.08147176,134.38,134.3,3.84016264]
[1765129284047,6.02429683,134.35,134.3,3.84016264]
[1765129284449,0.04780808,134.34,134.3,3.84016264]
[1765129284645,0.04780808,134.34,134.31,3.09]
[1765129285151,104.1447,134.42,134.31,3.09]
[1765129285152,104.1589,134.4,134.31,3.09]
[1765129285353,104.1816,134.37,134.31,3.09]
[1765129285657,169.651,134.36,134.3,3.84016264]